fUST/lending_fUST_20240409
["ID","MTS","AMOUNT","RATE_DAILY","PERIOD"]
[321969128,1712659842577,-500.0,0.00035616,2]
[321969129,1712659842585,-177.94374007,0.00035616,2]
[321969130,1712659842595,-500.0,0.00035616,2]
[321969131,1712659842608,-500.0,0.00035616,2]
[321969132,1712659842619,-500.0,0.00035616,2]
[321969133,1712659842629,-500.0,0.00035616,2]
[321969134,1712659842640,-592.07022979,0.00035616,2]
[321969135,1712659842651,-500.0,0.00035616,2]
[321969136,1712659842661,-500.81627046,0.00035616,2]
[321969137,1712659842670,-500.0,0.00035616,2]
[321969138,1712659842679,-500.0,0.00035616,2]
[321969139,1712659842690,-500.0,0.00035616,2]
[321969140,1712659842700,-835.66,0.00035616,2]
[321969141,1712659842710,-500.0,0.00035616,2]
[321969142,1712659842719,-777.01,0.00035616,2]
[321969143,1712659842729,-302.012206,0.00035616,2]
[321969144,1712659842738,-302.012206,0.00035616,2]
[321969145,1712659842747,-302.012206,0.00035616,2]
[321969146,1712659842757,-302.012206,0.00035616,2]
[321969147,1712659842766,-500.0,0.00035616,2]
[321969148,1712659842775,-1057.79,0.00035616,2]
[321969149,1712659842784,-302.012206,0.00035616,2]
[321969150,1712659842793,-447.50773548,0.00035616,2]
[321969151,1712659842802,-302.012206,0.00035616,2]
[321969152,1712659842811,-302.012206,0.00035616,2]
[321969153,1712659842821,-302.012206,0.00035616,2]
[321969154,1712659842830,-302.012206,0.00035616,2]
[321969155,1712659842839,-500.0,0.00035616,2]
[321969156,1712659842849,-302.012206,0.00035616,2]
[321969157,1712659842858,-302.012206,0.00035616,2]
[321969159,1712659842867,-302.012206,0.00035616,2]
[321969160,1712659842878,-500.0,0.00035616,2]
[321969161,1712659842888,-336.70695733,0.00035616,2]
[321969162,1712659842900,-500.0,0.00035616,2]
[321969163,1712659842910,-500.0,0.00035616,2]
[321969164,1712659842920,-500.0,0.00035616,2]
[321969165,1712659842929,-500.0,0.00035616,2]
[321969166,1712659842938,-500.0,0.00035616,2]
[321969167,1712659842948,-500.0,0.00035616,2]
[321969168,1712659842957,-500.0,0.00035616,2]
[321969169,1712659842966,-754.54,0.00035616,2]
[321969170,1712659842975,-1641.78,0.00035616,2]
[321969171,1712659842985,-4503.31,0.00035616,2]
[321969172,1712659842995,-500.0,0.00035616,2]
[321969173,1712659843003,-500.0,0.00035616,2]
[321969174,1712659843012,-500.0,0.00035616,2]
[321969175,1712659843021,-1136.27,0.00035616,2]
[321969177,1712659843030,-500.0,0.00035616,2]
[321969178,1712659843039,-500.0,0.00035616,2]
[321969179,1712659843048,-500.0,0.00035616,2]
[321969180,1712659843058,-500.0,0.00035616,2]
[321969181,1712659843067,-500.0,0.00035616,2]
[321969182,1712659843077,-5484.34,0.00035616,2]
[321969183,1712659843087,-501.66027574,0.00035616,2]
[321969184,1712659843096,-196.89106982,0.00035616,2]
[321969185,1712659843105,-500.0,0.00035616,2]
[321969186,1712659843115,-500.0,0.00035616,2]
[321969187,1712659843124,-1414.0,0.00035616,2]
[321969188,1712659843133,-500.0,0.00035616,2]
[321969189,1712659843143,-514.04904968,0.00035616,2]
[321969190,1712659843154,-500.0,0.00035616,2]
[321969191,1712659843163,-500.87774121,0.00035616,2]
[321969192,1712659843173,-500.0,0.00035616,2]
[321969193,1712659843183,-2336.91,0.00035616,2]
[321969194,1712659843193,-1503.79,0.00035616,2]
[321969196,1712659843202,-500.0,0.00035616,2]
[321969198,1712659843212,-500.0,0.00035616,2]
[321969200,1712659843222,-506.7,0.00035616,2]
[321969201,1712659843231,-280.288836,0.00035616,2]
[321969202,1712659843241,-500.0,0.00035616,2]
[321969203,1712659843251,-500.0,0.00035616,2]
[321969204,1712659843262,-500.0,0.00035616,2]
[321969205,1712659843271,-500.0,0.00035616,2]
[321969206,1712659843280,-339.935949,0.00035616,2]
[321969207,1712659843290,-500.0,0.00035616,2]
[321969208,1712659843299,-500.0,0.00035616,2]
[321969209,1712659843309,-500.33374769,0.00035616,2]
[321969210,1712659843317,-151.0,0.00035616,2]
[321969211,1712659843328,-151.0,0.00035616,2]
[321969212,1712659843338,-151.0,0.00035616,2]
[321969213,1712659843348,-151.0,0.00035616,2]
[321969214,1712659843357,-654.59,0.00035616,2]
[321969215,1712659843367,-507.76012777,0.00035616,2]
[321969216,1712659843376,-151.0,0.00035616,2]
[321969217,1712659843386,-151.0,0.00035616,2]
[321969218,1712659843396,-1684.88,0.00035616,2]
[321969219,1712659843405,-500.0,0.00035616,2]
[321969221,1712659843414,-500.0,0.00035616,2]
[321969223,1712659843423,-500.0,0.00035616,2]
[321969224,1712659843432,-500.0,0.00035616,2]
[321969225,1712659843442,-500.0,0.00035616,2]
[321969226,1712659843451,-500.0,0.00035616,2]
[321969227,1712659843460,-500.0,0.00035616,2]
[321969228,1712659843470,-500.0,0.00035616,2]
[321969229,1712659843479,-500.0,0.00035616,2]
[321969230,1712659843489,-500.0,0.00035616,2]
[321969231,1712659843498,-500.0,0.00035616,2]
[321969232,1712659843508,-500.0,0.00035616,2]
[321969233,1712659843517,-500.0,0.00035616,2]
[321969234,1712659843526,-1600.36,0.00035616,2]
[321969235,1712659843535,-720.81,0.00035616,2]
[321969236,1712659843545,-1025.37,0.00035616,2]
[321969237,1712659843557,-500.0,0.00035616,2]
[321969238,1712659843567,-500.0,0.00035616,2]
[321969239,1712659843576,-2917.3,0.00035616,2]
[321969240,1712659843585,-500.0,0.00035616,2]
[321969241,1712659843595,-500.0,0.00035616,2]
[321969242,1712659843607,-500.0,0.00035616,2]
[321969243,1712659843616,-1650.98,0.00035616,2]
[321969244,1712659843626,-500.0,0.00035616,2]
[321969245,1712659843637,-501.94480427,0.00035616,2]
[321969246,1712659843646,-500.0,0.00035616,2]
[321969247,1712659843656,-500.0,0.00035616,2]
[321969248,1712659843665,-500.0,0.00035616,2]
[321969249,1712659843674,-501.78263884,0.00035616,2]
[321969250,1712659843683,-151.0,0.00035616,2]
[321969251,1712659843694,-151.0,0.00035616,2]
[321969252,1712659843704,-151.0,0.00035616,2]
[321969253,1712659843713,-169.842398,0.00035616,2]
[321969254,1712659843723,-500.0,0.00035616,2]
[321969255,1712659843732,-500.0,0.00035616,2]
[321969256,1712659843742,-500.0,0.00035616,2]
[321969257,1712659843750,-500.0,0.00035616,2]
[321969258,1712659843760,-500.0,0.00035616,2]
[321969259,1712659843770,-501.48843731,0.00035616,2]
[321969260,1712659843780,-2441.78,0.00035616,2]
[321969261,1712659843790,-500.0,0.00035616,2]
[321969262,1712659843801,-500.0,0.00035616,2]
[321969263,1712659843813,-500.0,0.00035616,2]
[321969264,1712659843825,-500.0,0.00035616,2]
[321969265,1712659843835,-500.0,0.00035616,2]
[321969266,1712659843844,-16924.29,0.00035616,2]
[321969267,1712659843853,-536.35467801,0.00035616,2]
[321969268,1712659843862,-500.0,0.00035616,2]
[321969269,1712659843871,-300.0,0.00035616,2]
[321969270,1712659843881,-1414.79,0.00035616,2]
[321969271,1712659843890,-500.0,0.00035616,2]
[321969272,1712659843899,-400.27476091,0.00035616,2]
[321969273,1712659843909,-500.0,0.00035616,2]
[321969274,1712659843918,-500.0,0.00035616,2]
[321969275,1712659843927,-500.0,0.00035616,2]
[321969276,1712659843936,-557.73,0.00035616,2]
[321969277,1712659843946,-500.0,0.00035616,2]
[321969278,1712659843956,-500.0,0.00035616,2]
[321969279,1712659843966,-500.0,0.00035616,2]
[321969280,1712659843975,-507.82616622,0.00035616,2]
[321969281,1712659843985,-500.0,0.00035616,2]
[321969282,1712659843994,-151.0,0.00035616,2]
[321969283,1712659844004,-151.0,0.00035616,2]
[321969284,1712659844014,-500.0,0.00035616,2]
[321969285,1712659844023,-151.0,0.00035616,2]
[321969286,1712659844032,-433.68865394,0.00035616,2]
[321969287,1712659844042,-168.787488,0.00035616,2]
[321969288,1712659844052,-500.0,0.00035616,2]
[321969289,1712659844064,-3245.32,0.00035616,2]
[321969290,1712659844074,-500.0,0.00035616,2]
[321969291,1712659844086,-500.0,0.00035616,2]
[321969292,1712659844095,-501.50341539,0.00035616,2]
[321969293,1712659844105,-2687.11,0.00035616,2]
[321969294,1712659844114,-500.0,0.00035616,2]
[321969295,1712659844123,-528.02933333,0.00035616,2]
[321969296,1712659844132,-585.2318823,0.00035616,2]
[321969297,1712659844141,-500.0,0.00035616,2]
[321969298,1712659844150,-500.0,0.00035616,2]
[321969299,1712659844159,-502.58820334,0.00035616,2]
[321969300,1712659844168,-403.437421,0.00035616,2]
[321969301,1712659844177,-500.0,0.00035616,2]
[321969302,1712659844186,-403.437421,0.00035616,2]
[321969303,1712659844195,-403.437421,0.00035616,2]
[321969304,1712659844204,-403.437421,0.00035616,2]
[321969305,1712659844214,-500.0,0.00035616,2]
[321969306,1712659844224,-403.437421,0.00035616,2]
[321969307,1712659844234,-403.437421,0.00035616,2]
[321969308,1712659844243,-500.63695796,0.00035616,2]
[321969309,1712659844252,-500.0,0.00035616,2]
[321969310,1712659844262,-500.0,0.00035616,2]
[321969311,1712659844272,-1687.93,0.00035616,2]
[321969312,1712659844281,-403.437421,0.00035616,2]
[321969313,1712659844291,-500.0,0.00035616,2]
[321969314,1712659844301,-500.0,0.00035616,2]
[321969315,1712659844311,-403.437421,0.00035616,2]
[321969316,1712659844321,-583.52,0.00035616,2]
[321969317,1712659844330,-500.0,0.00035616,2]
[321969318,1712659844339,-500.0,0.00035616,2]
[321969319,1712659844348,-500.0,0.00035616,2]
[321969320,1712659844357,-403.437421,0.00035616,2]
[321969321,1712659844453,-403.437421,0.00035616,2]
[321969322,1712659844462,-403.437421,0.00035616,2]
[321969323,1712659844471,-403.437421,0.00035616,2]
[321969324,1712659844480,-500.0,0.00035616,2]
[321969325,1712659844489,-1000.0,0.00035616,2]
[321969326,1712659844499,-500.0,0.00035616,2]
[321969327,1712659844508,-500.0,0.00035616,2]
[321969328,1712659844517,-500.0,0.00035616,2]
[321969329,1712659844526,-500.0,0.00035616,2]
[321969330,1712659844535,-501.09205567,0.00035616,2]
[321969331,1712659844544,-500.0,0.00035616,2]
[321969332,1712659844554,-500.0,0.00035616,2]
[321969333,1712659844565,-500.0,0.00035616,2]
[321969334,1712659844574,-382.34103395,0.00035616,2]
[321969335,1712659844583,-500.77374777,0.00035616,2]
[321969336,1712659844592,-500.0,0.00035616,2]
[321969337,1712659844601,-13649.39,0.00035616,2]
[321969338,1712659844610,-534.11755053,0.00035616,2]
[321969339,1712659844620,-249.90501089,0.00035616,2]
[321969340,1712659844630,-500.0,0.00035616,2]
[321969341,1712659844640,-500.0,0.00035616,2]
[321969342,1712659844650,-500.0,0.00035616,2]
[321969343,1712659844660,-500.0,0.00035616,2]
[321969344,1712659844669,-500.0,0.00035616,2]
[321969345,1712659844679,-1135.82,0.00035616,2]
[321969346,1712659844687,-373.33904717,0.00035616,2]
[321969347,1712659844696,-5215.09,0.00035616,2]
[321969348,1712659844705,-500.0,0.00035616,2]
[321969349,1712659844714,-500.0,0.00035616,2]
[321969350,1712659844724,-500.0,0.00035616,2]
[321969351,1712659844733,-732.84,0.00035616,2]
[321969352,1712659844742,-500.0,0.00035616,2]
[321969353,1712659844752,-500.0,0.00035616,2]
[321969354,1712659844761,-154.98450155,0.00035616,2]
[321969355,1712659844770,-500.0,0.00035616,2]
[321969356,1712659844781,-500.0,0.00035616,2]
[321969357,1712659844791,-500.0,0.00035616,2]
[321969358,1712659844801,-151.0,0.00035616,2]
[321969359,1712659844810,-231.308863,0.00035616,2]
[321969360,1712659844822,-500.0,0.00035616,2]
[321969361,1712659844831,-500.0,0.00035616,2]
[321969362,1712659844841,-1711.32,0.00035616,2]
[321969363,1712659844851,-501.15600288,0.00035616,2]
[321969364,1712659844860,-2010.53,0.00035616,2]
[321969365,1712659844869,-500.0,0.00035616,2]
[321969366,1712659844878,-500.0,0.00035616,2]
[321969367,1712659844888,-1245.84,0.00035616,2]
[321969368,1712659844897,-501.82630852,0.00035616,2]
[321969369,1712659844906,-2603.79,0.00035616,2]
[321969370,1712659844916,-500.0,0.00035616,2]
[321969371,1712659844925,-500.0,0.00035616,2]
[321969372,1712659844935,-500.0,0.00035616,2]
[321969373,1712659844944,-500.0,0.00035616,2]
[321969374,1712659844954,-602.77,0.00035616,2]
[321969375,1712659844963,-682.68701646,0.00035727,7]
[321969376,1712659844972,-151.0,0.00035733,2]
[321969377,1712659844981,-153.0,0.00035733,2]
[321969378,1712659844991,-306.0,0.00035733,2]
[321969379,1712659845001,-625.47356118,0.000358,2]
[321969380,1712659845011,-500.0,0.00035889,5]
[321969381,1712659845020,-500.0,0.0003589,5]
[321969382,1712659845030,-500.0,0.0003589,5]
[321969383,1712659845039,-500.0,0.0003589,5]
[321969384,1712659845049,-500.0,0.0003589,5]
[321969385,1712659845058,-535.46711863,0.0003589,5]
[321969386,1712659845067,-381.13798679,0.0003589,5]
[321969387,1712659845077,-500.0,0.0003589,5]
[321969388,1712659845087,-500.0,0.0003589,5]
[321969389,1712659845097,-204.475355,0.0003589,2]
[321969390,1712659845106,-500.0,0.0003589,5]
[321969391,1712659845117,-500.0,0.0003589,5]
[321969392,1712659845126,-500.0,0.0003589,5]
[321969393,1712659845136,-500.0,0.0003589,5]
[321969394,1712659845145,-500.0,0.0003589,5]
[321969395,1712659845156,-500.0,0.0003589,5]
[321969396,1712659845165,-500.0,0.0003589,5]
[321969397,1712659845174,-801.9,0.0003589,5]
[321969398,1712659845183,-500.0,0.0003589,5]
[321969399,1712659845193,-500.0,0.0003589,5]
[321969400,1712659845203,-500.0,0.0003589,5]
[321969401,1712659845214,-500.0,0.0003589,5]
[321969402,1712659845223,-500.0,0.0003589,5]
[321969403,1712659845233,-500.0,0.0003589,5]
[321969404,1712659845243,-500.0,0.0003589,5]
[321969405,1712659845253,-500.0,0.0003589,5]
[321969406,1712659845263,-500.0,0.0003589,5]
[321969407,1712659845272,-525.06,0.0003589,5]
[321969408,1712659845281,-500.0,0.0003589,5]
[321969409,1712659845291,-500.0,0.0003589,5]
[321969410,1712659845301,-500.0,0.0003589,5]
[321969411,1712659845311,-500.0,0.0003589,5]
[321969412,1712659845320,-500.0,0.0003589,5]
[321969413,1712659845330,-500.0,0.0003589,5]
[321969414,1712659845339,-500.0,0.0003589,5]
[321969415,1712659845349,-500.0,0.0003589,5]
[321969416,1712659845359,-500.0,0.0003589,5]
[321969417,1712659845368,-500.0,0.0003589,5]
[321969418,1712659845377,-168.31728859,0.0003589,5]
[321969419,1712659845386,-99.41668339,0.0003589,5]
[321969423,1712659845508,-400.58331661,0.0003589,5]
[321969424,1712659845518,-500.0,0.0003589,5]
[321969425,1712659845527,-1224.97,0.0003589,5]
[321969426,1712659845536,-294.51046818,0.0003589,5]
[321969427,1712659845546,-500.0,0.0003589,5]
[321969430,1712659845558,-500.0,0.0003589,5]
[321969433,1712659845567,-500.0,0.0003589,5]
[321969436,1712659845575,-500.0,0.0003589,5]
[321969439,1712659845584,-500.0,0.0003589,5]
[321969440,1712659845594,-163.97379358,0.0003589,5]
[321969442,1712659845603,-225.49441251,0.0003589,5]
[321969444,1712659845613,-500.0,0.0003589,5]
[321969446,1712659845623,-500.0,0.0003589,5]
[321969447,1712659845633,-184.69300335,0.0003589,5]
[321969448,1712659845643,-500.0,0.0003589,5]
[321969449,1712659845651,-500.0,0.0003589,5]
[321969450,1712659845663,-500.0,0.0003589,5]
[321969451,1712659845673,-500.0,0.0003589,5]
[321969452,1712659845682,-151.0,0.0003589,2]
[321969453,1712659845691,-151.0,0.0003589,2]
[321969454,1712659845700,-151.0,0.0003589,2]
[321969455,1712659845710,-151.0,0.0003589,2]
[321969456,1712659845719,-500.0,0.0003589,5]
[321969457,1712659845728,-500.0,0.0003589,5]
[321969458,1712659845737,-285.078323,0.0003589,2]
[321969459,1712659845746,-500.0,0.0003589,5]
[321969460,1712659845755,-285.078323,0.0003589,2]
[321969461,1712659845764,-285.078323,0.0003589,2]
[321969462,1712659845774,-285.078323,0.0003589,2]
[321969463,1712659845783,-500.0,0.0003589,5]
[321969464,1712659845792,-285.078323,0.0003589,2]
[321969465,1712659845802,-285.078323,0.0003589,2]
[321969466,1712659845811,-500.0,0.0003589,5]
[321969467,1712659845821,-285.078323,0.0003589,2]
[321969468,1712659845830,-285.078323,0.0003589,2]
[321969470,1712659845840,-500.0,0.0003589,5]
[321969472,1712659845849,-500.0,0.0003589,5]
[321969474,1712659845859,-500.0,0.0003589,5]
[321969476,1712659845868,-153.20965356,0.0003589,5]
[321969478,1712659845878,-500.0,0.0003589,5]
[321969480,1712659845887,-500.0,0.0003589,5]
[321969482,1712659845896,-635.38,0.0003589,5]
[321969485,1712659845906,-646.41899913,0.0003589,5]
[321969486,1712659845916,-337.97382747,0.0003589,5]
[321969488,1712659845926,-500.0,0.0003589,5]
[321969490,1712659845935,-1471.01501182,0.0003589,5]
[321969493,1712659845948,-36.80498818,0.0003589,5]
[321969495,1712659845958,-500.0,0.0003589,5]
[321969497,1712659845967,-64.88926708,0.0003589,5]
[321969587,1712660386714,1000.0,0.00021918,7]
[321969592,1712660838102,-765.84554286,0.0002582,5]
[321969593,1712660838122,-638.05192735,0.00025821,2]
[321969594,1712660838143,-157.26509838,0.00025822,2]
[321969595,1712660838164,-465.892126,0.00025827,2]
[321969596,1712660838185,-250.0,0.00025827,2]
[321969597,1712660838206,-1379.0563841,0.00026386,2]
[321969598,1712660838227,-300.0,0.0002696,2]
[321969599,1712660838248,-300.0,0.0002696,2]
[321969600,1712660838269,-15095.78034716,0.00026961,2]
[321969601,1712660847109,-869.72941021,0.00026961,2]
[321969602,1712660849192,-1281.26822599,0.00026961,2]
[321969603,1712660851105,-154.98076401,0.00026961,2]
[321969604,1712660854144,-309.9690031,0.00026961,2]
[321969608,1712660965093,-369.84801112,0.00024861,2]
[321969609,1712660965115,-77.93093888,0.0002696,2]
[321969614,1712661032695,-2460.9167253,0.00026689,2]
[321969615,1712661032704,-300.0,0.0002696,2]
[321969616,1712661032713,-300.0,0.0002696,2]
[321969618,1712661032724,-477.0832747,0.00026961,2]
[321970186,1712661038633,-11082.77361273,0.00026961,2]
[321970188,1712661038642,-271.06098356,0.00027003,3]
[321970190,1712661038651,-13921.8005291,0.00027196,2]
[321970192,1712661038660,-160.618335,0.00027397,2]
[321970194,1712661038669,-500.0,0.00028081,2]
[321970196,1712661038678,-500.0,0.00028081,2]
[321970198,1712661038688,-23255.8514966,0.00028082,2]
[321970247,1712661039171,-1644.1485034,0.00028082,2]
[321970250,1712661039182,-765.84554286,0.0002857,5]
[321970252,1712661039194,-271.06098351,0.00028571,4]
[321970253,1712661039204,-840.66911666,0.00029,2]
[321970255,1712661039215,-420.0,0.00029656,2]
[321970258,1712661039226,-369.84801112,0.00029861,2]
[321970260,1712661039236,-500.0,0.00029986,2]
[321970261,1712661039247,-500.0,0.00029986,2]
[321970263,1712661039257,-500.0,0.00029986,2]
[321970265,1712661039267,-500.0,0.00029986,2]
[321970267,1712661039277,-254.86659853,0.00029986,2]
[321970270,1712661039288,-185.13965477,0.00029986,2]
[321970271,1712661039298,-489.16824159,0.00029986,2]
[321970274,1712661039308,-500.0,0.00029986,2]
[321970276,1712661039319,-500.0,0.00029986,2]
[321970277,1712661039329,-465.738866,0.00029986,2]
[321970280,1712661039340,-23803.09920649,0.00029987,2]
[321970282,1712661039350,-168.33817547,0.0003,2]
[321970284,1712661039360,-1828.93288364,0.0003,2]
[321970286,1712661039371,-574.86367116,0.0003,2]
[321970288,1712661039381,-271.06098351,0.00030139,4]
[321970290,1712661039392,-8852.00811043,0.00031398,2]
[321970292,1712661039402,-271.06098351,0.00031707,5]
[321970294,1712661039411,-171.815787,0.00031984,2]
[321970296,1712661039422,-587.0,0.00032621,2]
[321970298,1712661039431,-9652.71828588,0.00032875,4]
[321970299,1712661039441,-166.666666,0.00032877,2]
[321970301,1712661039451,-1272.37103576,0.00033274,4]
[321970303,1712661039461,-271.06098351,0.00033275,6]
[321970306,1712661039471,-160.618335,0.00033486,2]
[321970307,1712661039481,-166.666666,0.00033646,2]
[321970310,1712661039490,-459.01337883,0.00033677,4]
[321970312,1712661039501,-888.59340303,0.00033678,4]
[321970314,1712661039510,-485.31631277,0.00034094,4]
[321970316,1712661039520,-153.0,0.0003434,2]
[321970318,1712661039529,-202.7418102,0.0003434,2]
[321970319,1712661039538,-153.0,0.0003434,2]
[321970320,1712661039548,-153.0,0.0003434,2]
[321970321,1712661039558,-154.783292,0.0003434,2]
[321970322,1712661039567,-153.0,0.0003434,2]
[321970323,1712661039576,-202.7418102,0.0003434,2]
[321970324,1712661039585,-153.0,0.0003434,2]
[321970325,1712661039594,-153.0,0.0003434,2]
[321970326,1712661039603,-202.7418102,0.0003434,2]
[321970327,1712661039613,-153.0,0.0003434,2]
[321970328,1712661039623,-202.7418102,0.0003434,2]
[321970329,1712661039632,-166.666666,0.00034415,2]
[321970330,1712661039641,-271.06098351,0.00034843,7]
[321970331,1712661039651,-369.84801112,0.00034861,2]
[321970332,1712661039660,-999.14920099,0.00034902,4]
[321970333,1712661039669,-596.08980381,0.00035,2]
[321970334,1712661039679,-153.0,0.00035094,2]
[321970335,1712661039688,-202.7418102,0.00035162,2]
[321970336,1712661039697,-153.0,0.00035162,2]
[321970337,1712661039707,-202.7418102,0.00035162,2]
[321970338,1712661039716,-202.7418102,0.00035162,2]
[321970340,1712661039726,-202.7418102,0.00035162,2]
[321970341,1712661039736,-201.0,0.00035162,2]
[321970342,1712661039745,-153.0,0.00035162,2]
[321970343,1712661039754,-202.7418102,0.00035162,2]
[321970344,1712661039764,-202.7418102,0.00035162,2]
[321970345,1712661039773,-202.7418102,0.00035162,2]
[321970347,1712661039782,-153.0,0.00035162,2]
[321970350,1712661039790,-202.7418102,0.00035162,2]
[321970352,1712661039799,-153.0,0.00035162,2]
[321970354,1712661039809,-166.666666,0.00035185,2]
[321970355,1712661039819,-152.0,0.00035343,2]
[321970357,1712661039828,-3482.08584511,0.00035455,14]
[321970359,1712661039838,-1962.4810933,0.0003549,2]
[321970361,1712661039847,-2000.0,0.00035516,2]
[321970363,1712661039856,-156.6294846,0.00035531,3]
[321970365,1712661039867,-400.83883555,0.00035614,4]
[321970367,1712661039876,-309.31065344,0.00035614,4]
[321970369,1712661039885,-154.92253873,0.00035615,4]
[321970371,1712661039895,-1908.40397556,0.00035615,4]
[321970373,1712661039904,-56850.30486959,0.00035616,3]
[321970431,1712661040455,-19351.89142585,0.00035616,3]
[321970434,1712661040467,-708.35,0.00035616,3]
[321970719,1712661043446,-1465.96840202,0.00035616,3]
[321970726,1712661043505,-319.0,0.0003,2]
[321970728,1712661043515,-6922.73428406,0.00035616,3]
[321970738,1712661043594,-0.00126841,0.00035616,3]
[321970742,1712661043621,-353.095,0.00035616,3]
[321970792,1712661047137,-500.0,0.00029986,2]
[321970793,1712661047150,-500.0,0.00029986,2]
[321970794,1712661047162,-500.0,0.00029986,2]
[321970795,1712661047174,-500.0,0.00029986,2]
[321970796,1712661047186,-500.0,0.00029986,2]
[321970797,1712661047198,-500.0,0.00029986,2]
[321970798,1712661047209,-260.70681448,0.00029986,2]
[321970800,1712661047221,-228.04797225,0.00029986,2]
[321970801,1712661047233,-500.0,0.00029986,2]
[321970802,1712661047244,-500.0,0.00029986,2]
[321970803,1712661047256,-500.0,0.00029986,2]
[321970804,1712661047268,-500.0,0.00029986,2]
[321970806,1712661047279,-500.0,0.00029986,2]
[321970807,1712661047291,-261.35539656,0.00029986,2]
[321970808,1712661047303,-500.0,0.00029986,2]
[321970809,1712661047315,-500.0,0.00029986,2]
[321970810,1712661047330,-448.65919446,0.00029986,2]
[321970811,1712661047342,-308.05923038,0.00029986,2]
[321970813,1712661047354,-500.0,0.00029986,2]
[321970815,1712661047365,-500.0,0.00029986,2]
[321970816,1712661047380,-500.0,0.00029986,2]
[321970817,1712661047391,-500.0,0.00029986,2]
[321970818,1712661047406,-478.23935679,0.00029986,2]
[321970819,1712661047418,-1019.1,0.00035615,2]
[321970820,1712661047430,-71068.01416008,0.00035616,3]
[321970821,1712661047443,-377.37248519,0.00035616,2]
[321970822,1712661047455,-501.61455761,0.00035616,2]
[321970823,1712661047466,-500.0,0.00035616,2]
[321970824,1712661047477,-500.0,0.00035616,2]
[321970825,1712661047488,-500.0,0.00035616,2]
[321970826,1712661047500,-500.0,0.00035616,2]
[321970827,1712661047512,-500.0,0.00035616,2]
[321970828,1712661047523,-500.0,0.00035616,2]
[321970829,1712661047535,-500.0,0.00035616,2]
[321970830,1712661047547,-500.0,0.00035616,2]
[321970831,1712661047560,-500.0,0.00035616,2]
[321970832,1712661047572,-500.0,0.00035616,2]
[321970833,1712661047584,-1122.74,0.00035616,2]
[321970834,1712661047596,-500.0,0.00035616,2]
[321970835,1712661047606,-500.0,0.00035616,2]
[321970836,1712661047616,-500.0,0.00035616,2]
[321970837,1712661047627,-500.0,0.00035616,2]
[321970838,1712661047636,-500.0,0.00035616,2]
[321970839,1712661047648,-500.0,0.00035616,2]
[321970840,1712661047660,-583.36982014,0.00035616,2]
[321970841,1712661047671,-500.0,0.00035616,2]
[321970842,1712661047682,-500.0,0.00035616,2]
[321970843,1712661047693,-501.44844199,0.00035616,2]
[321970844,1712661047704,-500.0,0.00035616,2]
[321970845,1712661047714,-500.0,0.00035616,2]
[321970846,1712661047724,-500.0,0.00035616,2]
[321970847,1712661047734,-500.0,0.00035616,2]
[321970848,1712661047744,-500.0,0.00035616,2]
[321970849,1712661047755,-500.0,0.00035616,2]
[321970850,1712661047766,-500.0,0.00035616,2]
[321970851,1712661047777,-500.0,0.00035616,2]